[Event "Turkish Championship 2023"]
[Site "Kemer Antalya"]
[Date "2023.12.04"]
[Round "3"]
[White "Eren, Ataberk"]
[Black "Yilmazyerli, Mert"]
[Result "1/2-1/2"]
[ECO "B90"]
[WhiteElo "2429"]
[BlackElo "2524"]
[Annotator "RC"]
[PlyCount "41"]
[EventDate "2023.12.01"]
[EventType "tourn"]
[EventCountry "TUR"]
[SourceTitle "playchess.com"]
[Source "ChessBase"]
[SourceQuality "1"]
[TimeControl "40/5400+30:1800+30"]

1. e4 {[%emt 0:04:00]} c5 {[%emt 0:02:00]} 2. Nf3 {[%emt 0:00:30]} d6 {[%emt 0:00:00]} 3. d4 {[%emt 0:00:30]} cxd4 {[%emt 0:00:00]} 4. Nxd4 {[%emt 0:00:30]} Nf6 {[%emt 0:00:00]} 5. Nc3 {[%emt 0:00:00]} a6 {[%emt 0:00:00]} 6. h3 {[%emt 0:00:00]} Nc6 {[%emt 0:00:30]} 7. Be3 {[%emt 0:01:30]} e5 {[%emt 0:00:00]} 8. Nb3 {[%emt 0:00:00]} Be6 {[%emt 0:01:00]} 9. f4 {[%emt 0:01:00]} exf4 {[%emt 0:13:30]} 10. Bxf4 {[%emt 0:00:00]} d5 {[%emt 0:00:30]} 11. exd5 {[%emt 0:03:00]} Nxd5 {[%emt 0:00:00]} 12. Nxd5 {[%emt 0:00:30]} Qxd5 {[%emt 0:00:00]} 13. Qxd5 {[%emt 0:00:30]} Bxd5 {[%emt 0:01:30]} 14. O-O-O {[%emt 0:00:30]} O-O-O {[%emt 0:03:30]} 15. Bd3 {[%emt 0:06:30]} Bd6 {[%emt 0:10:30]} 16. Bf5+ {[%emt 0:15:30]} Kc7 {[%emt 0:01:30]} 17. Bg5 {[%emt 0:00:30]} Be7 {[%emt 0:08:30]} 18. Bf4+ {[%emt 0:00:00]} Bd6 {[%emt 0:00:00]} 19. Bg5 {[%emt 0:00:00]} Be7 {[%emt 0:00:00]} 20. Bf4+ {[%emt 0:00:30]} Bd6 {[%emt 0:00:30]} 21. Bg5 {[%emt 0:01:30]} 1/2-1/2

[Event "Turkish Championship 2023"]
[Site "Kemer Antalya"]
[Date "2023.12.04"]
[Round "3"]
[White "Bicer, Atakan Mert"]
[Black "Tirpan, Ceren"]
[Result "0-1"]
[ECO "E16"]
[WhiteElo "2318"]
[BlackElo "1940"]
[Annotator "RC"]
[PlyCount "92"]
[EventDate "2023.12.01"]
[EventType "tourn"]
[EventCountry "TUR"]
[SourceTitle "playchess.com"]
[Source "ChessBase"]
[SourceQuality "1"]
[TimeControl "40/5400+30:1800+30"]

1. d4 {[%emt 0:03:00]} Nf6 {[%emt 0:01:00]} 2. c4 {[%emt 0:00:30]} e6 {[%emt 0:00:00]} 3. Nf3 {[%emt 0:00:30]} b6 {[%emt 0:00:00]} 4. g3 {[%emt 0:00:00]} Bb7 {[%emt 0:00:30]} 5. Bg2 {[%emt 0:00:00]} Bb4+ {[%emt 0:04:30]} 6. Bd2 {[%emt 0:01:30]} Be7 {[%emt 0:00:30]} 7. d5 {[%emt 0:01:30]} exd5 {[%emt 0:05:30]} 8. Nd4 {[%emt 0:00:30]} Ne4 {[%emt 0:04:30]} 9. cxd5 {[%emt 0:13:30]} Nxd2 {[%emt 0:18:30]} 10. Qxd2 {[%emt 0:01:30]} O-O {[%emt 0:06:30]} 11. O-O {[%emt 0:03:30]} Bf6 {[%emt 0:06:30]} 12. Nc3 {[%emt 0:09:30]} d6 {[%emt 0:07:30]} 13. Rac1 {[%emt 0:10:30]} Nd7 {[%emt 0:08:30]} 14. b4 {[%emt 0:15:30]} a6 {[%emt 0:05:30]} 15. Nc6 {[%emt 0:04:30]} Bxc6 {[%emt 0:03:30]} 16. dxc6 {[%emt 0:00:30]} Bxc3 {[%emt 0:00:00]} 17. Qxc3 {[%emt 0:04:30]} Nf6 {[%emt 0:01:00]} 18. e4 {[%emt 0:00:30]} Qe7 {[%emt 0:02:30]} 19. Rfe1 {[%emt 0:00:30]} a5 {[%emt 0:03:30]} 20. b5 {[%emt 0:00:30]} Qe5 {[%emt 0:05:44]} 21. Qd3 {[%emt 0:02:30]} Rfe8 {[%emt 0:02:53]} 22. f4 {[%emt 0:02:30]} Qb2 {[%emt 0:00:13]} 23. a3 {[%emt 0:03:30]} a4 {[%emt 0:03:45]} 24. Rb1 {[%emt 0:03:35]} Qa2 {[%emt 0:00:07]} 25. h3 {[%emt 0:08:18]} h5 {[%emt 0:00:50]} 26. Bf3 {[%emt 0:02:57]} Qe6 {[%emt 0:01:48]} 27. Kg2 {[%emt 0:00:12]} h4 {[%emt 0:00:55]} 28. g4 {[%emt 0:02:39]} Nh7 {[%emt 0:01:13]} 29. g5 {[%emt 0:01:16]} Nf8 {[%emt 0:01:33]} 30. Bg4 {[%emt 0:00:30]} Qe7 {[%emt 0:00:00]} 31. Qd5 {[%emt 0:01:01]} Ne6 {[%emt 0:01:37]} 32. Kf3 {[%emt 0:00:37]} Rad8 {[%emt 0:00:35]} 33. Rbd1 {[%emt 0:01:27]} Nc5 {[%emt 0:00:57]} 34. g6 {[%emt 0:01:47]} Qf6 {[%emt 0:02:33]} 35. Bh5 {[%emt 0:00:35]} Kh8 {[%emt 0:01:49]} 36. Qxf7 {[%emt 0:00:52]} Qc3+ {[%emt 0:00:10]} 37. Re3 {[%emt 0:00:43]} Qc2 {[%emt 0:00:10]} 38. Rde1 {[%emt 0:01:14]} Qh2 {[%emt 0:01:16]} 39. Qd5 {[%emt 0:00:31]} Ne6 {[%emt 0:00:53]} 40. f5 {[%emt 0:00:00]} Ng5+ {[%emt 0:00:00]} 41. Kg4 {[%emt 0:01:46]} Nxe4 {[%emt 0:08:59]} 42. Qd4 {[%emt 0:14:01]} Qg2+ {[%emt 0:01:30]} 43. Kf4 {[%emt 0:00:08]} Qg5+ {[%emt 0:00:30]} 44. Kf3 {[%emt 0:00:06]} Qxh5+ {[%emt 0:00:30]} 45. Kg2 {[%emt 0:00:13]} Qg5+ {[%emt 0:00:30]} 46. Kh1 {[%emt 0:00:36]} Ng3+ {[%emt 0:00:30]} 0-1

[Event "Turkish Championship 2023"]
[Site "Kemer Antalya"]
[Date "2023.12.04"]
[Round "3"]
[White "Taspinar, Yanki"]
[Black "Tuncer, Ufuk"]
[Result "0-1"]
[ECO "E71"]
[WhiteElo "2318"]
[BlackElo "2360"]
[Annotator "RC"]
[PlyCount "59"]
[EventDate "2023.12.01"]
[EventType "tourn"]
[EventCountry "TUR"]
[SourceTitle "playchess.com"]
[Source "ChessBase"]
[SourceQuality "1"]
[TimeControl "40/5400+30:1800+30"]

1. d4 {[%emt 0:02:00]} Nf6 {[%emt 0:01:00]} 2. c4 {[%emt 0:00:30]} g6 {[%emt 0:00:30]} 3. Nc3 {[%emt 0:00:30]} Bg7 {[%emt 0:00:00]} 4. e4 {[%emt 0:00:00]} d6 {[%emt 0:00:00]} 5. h3 {[%emt 0:00:00]} e5 {[%emt 0:00:00]} 6. d5 {[%emt 0:00:30]} a5 {[%emt 0:00:00]} 7. Bg5 {[%emt 0:00:00]} Na6 {[%emt 0:00:00]} 8. Bd3 {[%emt 0:00:00]} h6 {[%emt 0:00:00]} 9. Be3 {[%emt 0:00:30]} Nd7 {[%emt 0:02:30]} 10. Nge2 {[%emt 0:01:30]} Bf6 {[%emt 0:00:30]} 11. f3 {[%emt 0:00:30]} Nac5 {[%emt 0:07:30]} 12. Bc2 {[%emt 0:07:30]} Bg5 {[%emt 0:00:30]} 13. Bf2 {[%emt 0:01:30]} h5 {[%emt 0:00:30]} 14. h4 {[%emt 0:10:30]} Bh6 {[%emt 0:00:30]} 15. a3 {[%emt 0:06:30]} O-O {[%emt 0:05:30]} 16. Rb1 {[%emt 0:08:30]} Nb6 {[%emt 0:25:30]} 17. b3 {[%emt 0:39:00]} Bd7 {[%emt 0:10:30]} 18. b4 {[%emt 0:01:58]} axb4 {[%emt 0:01:30]} 19. axb4 {[%emt 0:00:12]} Nca4 {[%emt 0:10:30]} 20. Nxa4 {[%emt 0:01:53]} Nxa4 {[%emt 0:09:30]} 21. Bd3 {[%emt 0:07:21]} Qe7 {[%emt 0:02:30]} 22. Qc2 {[%emt 0:01:05]} Rfc8 {[%emt 0:04:08]} 23. O-O {[%emt 0:05:46]} c5 {[%emt 0:10:13]} 24. dxc6 {[%emt 0:01:24]} Bxc6 {[%emt 0:00:08]} 25. Qb3 {[%emt 0:01:26]} Qc7 {[%emt 0:00:00]} 26. Ra1 {[%emt 0:01:47]} Bd7 {[%emt 0:05:39]} 27. Ra3 {[%emt 0:00:58]} Nb6 {[%emt 0:00:53]} 28. Rxa8 {[%emt 0:00:28]} Nxa8 {[%emt 0:00:37]} 29. Nc3 {[%emt 0:00:37]} Be6 {[%emt 0:01:02]} 30. Nd5 {[%emt 0:01:05]} 0-1

[Event "Turkish Championship 2023"]
[Site "Kemer Antalya"]
[Date "2023.12.05"]
[Round "4"]
[White "Yilmazyerli, Mert"]
[Black "Taspinar, Yanki"]
[Result "1-0"]
[ECO "E11"]
[WhiteElo "2524"]
[BlackElo "2318"]
[Annotator "RC"]
[PlyCount "99"]
[EventDate "2023.12.01"]
[EventType "tourn"]
[EventCountry "TUR"]
[SourceTitle "playchess.com"]
[Source "ChessBase"]
[SourceQuality "1"]
[TimeControl "40/5400+30:1800+30"]

1. d4 {[%emt 0:04:00]} Nf6 {[%emt 0:01:00]} 2. c4 {[%emt 0:00:30]} e6 {[%emt 0:00:30]} 3. Nf3 {[%emt 0:00:00]} Bb4+ {[%emt 0:00:00]} 4. Nbd2 {[%emt 0:00:00]} b6 {[%emt 0:00:00]} 5. a3 {[%emt 0:01:30]} Bxd2+ {[%emt 0:00:30]} 6. Bxd2 {[%emt 0:00:30]} Bb7 {[%emt 0:01:30]} 7. Bf4 {[%emt 0:03:30]} d6 {[%emt 0:02:30]} 8. e3 {[%emt 0:00:30]} Nbd7 {[%emt 0:02:30]} 9. Be2 {[%emt 0:00:30]} O-O {[%emt 0:03:30]} 10. h3 {[%emt 0:00:30]} Qe7 {[%emt 0:02:30]} 11. O-O {[%emt 0:00:30]} Ne4 {[%emt 0:02:30]} 12. Bh2 {[%emt 0:03:30]} Ndf6 {[%emt 0:02:30]} 13. Qc2 {[%emt 0:04:30]} c5 {[%emt 0:03:30]} 14. b4 {[%emt 0:00:30]} Rac8 {[%emt 0:02:30]} 15. Qb2 {[%emt 0:00:00]} Rfd8 {[%emt 0:03:30]} 16. Rfd1 {[%emt 0:07:00]} h6 {[%emt 0:14:30]} 17. a4 {[%emt 0:05:30]} cxb4 {[%emt 0:15:30]} 18. Qxb4 {[%emt 0:00:30]} a5 {[%emt 0:00:30]} 19. Qa3 {[%emt 0:20:30]} Ba6 {[%emt 0:04:30]} 20. Rdc1 {[%emt 0:00:30]} Qb7 {[%emt 0:19:18]} 21. Qb2 {[%emt 0:07:30]} Rc6 {[%emt 0:08:17]} 22. Rc2 {[%emt 0:07:30]} Rdc8 {[%emt 0:02:36]} 23. Rac1 {[%emt 0:00:00]} Qa7 {[%emt 0:06:04]} 24. Bf1 {[%emt 0:07:00]} Ng5 {[%emt 0:01:24]} 25. Nd2 {[%emt 0:06:30]} Qd7 {[%emt 0:00:48]} 26. Nb3 {[%emt 0:03:09]} Nge4 {[%emt 0:00:30]} 27. f3 {[%emt 0:00:30]} Ng5 {[%emt 0:00:01]} 28. h4 {[%emt 0:05:13]} Ngh7 {[%emt 0:00:07]} 29. Nd2 {[%emt 0:02:18]} Qb7 {[%emt 0:01:22]} 30. e4 {[%emt 0:04:04]} d5 {[%emt 0:00:24]} 31. cxd5 {[%emt 0:00:52]} Rxc2 {[%emt 0:00:30]} 32. Rxc2 {[%emt 0:00:00]} Rxc2 {[%emt 0:00:09]} 33. Qxc2 {[%emt 0:00:11]} Bxf1 {[%emt 0:00:09]} 34. Nxf1 {[%emt 0:01:58]} exd5 {[%emt 0:00:30]} 35. Qc7 {[%emt 0:00:00]} Qa8 {[%emt 0:01:18]} 36. e5 {[%emt 0:00:35]} Ne8 {[%emt 0:00:01]} 37. Qxb6 {[%emt 0:00:35]} Nf8 {[%emt 0:00:13]} 38. Bg3 {[%emt 0:02:17]} Ne6 {[%emt 0:00:44]} 39. f4 {[%emt 0:00:44]} g6 {[%emt 0:01:06]} 40. h5 {[%emt 0:00:00]} N8g7 {[%emt 0:00:00]} 41. hxg6 {[%emt 0:02:34]} fxg6 {[%emt 0:02:29]} 42. Ne3 {[%emt 0:00:30]} Kh7 {[%emt 0:01:30]} 43. Kh2 {[%emt 0:04:30]} h5 {[%emt 0:00:30]} 44. f5 {[%emt 0:00:30]} gxf5 {[%emt 0:00:30]} 45. Nxf5 {[%emt 0:00:30]} Qe8 {[%emt 0:05:30]} 46. Nxg7 {[%emt 0:00:30]} Kxg7 {[%emt 0:00:30]} 47. Bh4 {[%emt 0:00:30]} Qd7 {[%emt 0:04:38]} 48. Qd6 {[%emt 0:03:30]} Nf8 {[%emt 0:05:44]} 49. Qxd7+ {[%emt 0:01:30]} Nxd7 {[%emt 0:00:30]} 50. Bd8 {[%emt 0:00:00]} 1-0

[Event "Turkish Championship 2023"]
[Site "Kemer Antalya"]
[Date "2023.12.05"]
[Round "4"]
[White "Tuncer, Ufuk"]
[Black "Tarhan, Adar"]
[Result "1/2-1/2"]
[ECO "B11"]
[WhiteElo "2360"]
[BlackElo "2434"]
[Annotator "RC"]
[PlyCount "61"]
[EventDate "2023.12.01"]
[EventType "tourn"]
[EventCountry "TUR"]
[SourceTitle "playchess.com"]
[Source "ChessBase"]
[SourceQuality "1"]
[TimeControl "40/5400+30:1800+30"]

1. e4 c6 2. Nc3 {[%emt 0:01:30]} d5 {[%emt 0:00:30]} 3. Nf3 {[%emt 0:00:30]} Bg4 {[%emt 0:00:30]} 4. h3 {[%emt 0:00:00]} Bh5 {[%emt 0:03:30]} 5. exd5 {[%emt 0:00:00]} cxd5 {[%emt 0:00:30]} 6. Bb5+ {[%emt 0:00:00]} Nc6 {[%emt 0:00:00]} 7. g4 {[%emt 0:00:00]} Bg6 {[%emt 0:00:00]} 8. Ne5 {[%emt 0:02:30]} Qc7 {[%emt 0:00:30]} 9. d4 {[%emt 0:01:30]} e6 {[%emt 0:00:30]} 10. Qe2 {[%emt 0:09:30]} Bb4 {[%emt 0:01:30]} 11. Bf4 {[%emt 0:11:30]} Qb6 {[%emt 0:02:30]} 12. O-O {[%emt 0:09:30]} Nge7 {[%emt 0:02:30]} 13. a3 {[%emt 0:15:30]} Bxc3 {[%emt 0:03:30]} 14. bxc3 {[%emt 0:00:00]} Qa5 {[%emt 0:00:30]} 15. Bxc6+ {[%emt 0:08:00]} Nxc6 {[%emt 0:08:30]} 16. Nxc6 {[%emt 0:13:30]} bxc6 {[%emt 0:00:30]} 17. Bd6 {[%emt 0:00:30]} h5 {[%emt 0:10:30]} 18. Rab1 {[%emt 0:07:51]} Qd8 {[%emt 0:03:30]} 19. Bc5 {[%emt 0:00:55]} hxg4 {[%emt 0:01:30]} 20. Qa6 {[%emt 0:00:56]} Rc8 {[%emt 0:02:30]} 21. Rb7 {[%emt 0:07:54]} gxh3 {[%emt 0:00:30]} 22. Kh2 {[%emt 0:00:52]} Rc7 {[%emt 0:02:30]} 23. Qxa7 {[%emt 0:00:32]} Rxb7 {[%emt 0:00:30]} 24. Qxb7 {[%emt 0:00:04]} Bxc2 {[%emt 0:00:30]} 25. Qxc6+ {[%emt 0:04:54]} Qd7 {[%emt 0:00:30]} 26. Qa8+ {[%emt 0:00:27]} Qd8 {[%emt 0:00:30]} 27. Qc6+ {[%emt 0:00:23]} Qd7 {[%emt 0:00:00]} 28. Qa8+ {[%emt 0:00:48]} Qd8 {[%emt 0:00:00]} 29. Qc6+ {[%emt 0:00:00]} Qd7 {[%emt 0:00:30]} 30. Qa8+ {[%emt 0:00:09]} Qd8 {[%emt 0:00:30]} 31. Qc6+ {[%emt 0:00:00]} 1/2-1/2

[Event "Turkish Championship 2023"]
[Site "Kemer Antalya"]
[Date "2023.12.05"]
[Round "4"]
[White "Bicer, Atakan Mert"]
[Black "Eren, Ataberk"]
[Result "1-0"]
[ECO "C07"]
[WhiteElo "2318"]
[BlackElo "2429"]
[Annotator "RC"]
[PlyCount "153"]
[EventDate "2023.12.01"]
[EventType "tourn"]
[EventCountry "TUR"]
[SourceTitle "playchess.com"]
[Source "ChessBase"]
[SourceQuality "1"]
[TimeControl "40/5400+30:1800+30"]

1. e4 {[%emt 0:04:00]} e6 {[%emt 0:01:00]} 2. d4 {[%emt 0:00:30]} d5 {[%emt 0:00:30]} 3. Nd2 {[%emt 0:00:00]} c5 {[%emt 0:00:00]} 4. Ngf3 {[%emt 0:00:00]} cxd4 {[%emt 0:04:00]} 5. Nxd4 {[%emt 0:00:30]} Ne7 {[%emt 0:00:30]} 6. Bd3 {[%emt 0:04:30]} Nbc6 {[%emt 0:06:30]} 7. Nxc6 {[%emt 0:18:30]} bxc6 {[%emt 0:01:30]} 8. O-O {[%emt 0:00:30]} Ng6 {[%emt 0:01:30]} 9. f4 {[%emt 0:03:30]} Bc5+ {[%emt 0:06:30]} 10. Kh1 {[%emt 0:00:30]} O-O {[%emt 0:01:30]} 11. Nb3 {[%emt 0:11:30]} Bb6 {[%emt 0:02:30]} 12. c4 {[%emt 0:00:30]} dxc4 {[%emt 0:14:30]} 13. Bxc4 {[%emt 0:00:30]} Qxd1 {[%emt 0:00:30]} 14. Rxd1 {[%emt 0:00:30]} Bb7 {[%emt 0:00:00]} 15. Bd2 {[%emt 0:02:30]} Rfd8 {[%emt 0:04:00]} 16. Re1 {[%emt 0:10:30]} Rac8 {[%emt 0:16:30]} 17. g3 {[%emt 0:20:30]} Ne7 {[%emt 0:08:30]} 18. Rad1 {[%emt 0:02:29]} c5 {[%emt 0:02:30]} 19. Kg1 {[%emt 0:06:41]} Nc6 {[%emt 0:01:30]} 20. Bc3 {[%emt 0:03:37]} Nb4 {[%emt 0:06:46]} 21. Rxd8+ {[%emt 0:01:21]} Rxd8 {[%emt 0:00:14]} 22. Nd2 {[%emt 0:02:58]} Nc2 {[%emt 0:06:32]} 23. Re2 {[%emt 0:00:05]} Nd4 {[%emt 0:00:20]} 24. Re1 {[%emt 0:00:05]} Bc6 {[%emt 0:00:00]} 25. Kf2 {[%emt 0:01:16]} Nb5 {[%emt 0:01:23]} 26. Ke3 {[%emt 0:00:10]} Kf8 {[%emt 0:01:45]} 27. Rc1 {[%emt 0:01:55]} h5 {[%emt 0:02:51]} 28. h4 {[%emt 0:01:07]} Ke7 {[%emt 0:00:45]} 29. Ke2 {[%emt 0:02:40]} f6 {[%emt 0:00:51]} 30. Bd3 {[%emt 0:00:29]} Nxc3+ {[%emt 0:06:50]} 31. Rxc3 {[%emt 0:00:19]} Bb7 {[%emt 0:01:59]} 32. Nc4 {[%emt 0:01:11]} Rd4 {[%emt 0:01:17]} 33. e5 {[%emt 0:00:31]} Bd5 {[%emt 0:00:34]} 34. exf6+ {[%emt 0:00:36]} gxf6 {[%emt 0:00:24]} 35. Nxb6 {[%emt 0:01:11]} axb6 {[%emt 0:00:30]} 36. Ra3 {[%emt 0:00:00]} Rb4 {[%emt 0:00:23]} 37. b3 {[%emt 0:00:05]} f5 {[%emt 0:00:33]} 38. Ra7+ {[%emt 0:00:57]} Kf6 {[%emt 0:00:29]} 39. Ke3 {[%emt 0:00:30]} b5 {[%emt 0:01:01]} 40. Bc2 {[%emt 0:00:00]} Be4 {[%emt 0:00:00]} 41. Bd1 {[%emt 0:02:47]} Kg6 {[%emt 0:02:33]} 42. Rc7 {[%emt 0:15:12]} c4 {[%emt 0:02:30]} 43. Rd7 {[%emt 0:01:01]} cxb3 {[%emt 0:06:30]} 44. Bxb3 {[%emt 0:00:35]} Bd5 {[%emt 0:07:44]} 45. Bxd5 {[%emt 0:00:15]} exd5 {[%emt 0:00:05]} 46. Rd6+ {[%emt 0:01:24]} Kf7 {[%emt 0:07:36]} 47. Rxd5 {[%emt 0:04:05]} Ke6 {[%emt 0:00:40]} 48. Re5+ {[%emt 0:02:31]} Kf6 {[%emt 0:00:05]} 49. Rc5 {[%emt 0:00:45]} Re4+ {[%emt 0:02:11]} 50. Kd3 {[%emt 0:00:59]} Ra4 {[%emt 0:00:11]} 51. Rc2 {[%emt 0:00:45]} Ke6 {[%emt 0:02:12]} 52. Kc3 {[%emt 0:02:23]} Rc4+ {[%emt 0:04:00]} 53. Kb3 {[%emt 0:00:10]} Rxc2 {[%emt 0:00:00]} 54. Kxc2 {[%emt 0:00:32]} Kd5 {[%emt 0:00:00]} 55. Kc3 {[%emt 0:01:35]} Kc5 {[%emt 0:00:00]} 56. Kb3 {[%emt 0:00:55]} Kc6 {[%emt 0:01:11]} 57. Kb4 {[%emt 0:01:06]} Kb6 {[%emt 0:00:05]} 58. Kc3 {[%emt 0:00:50]} Kc5 {[%emt 0:00:55]} 59. Kb3 {[%emt 0:01:33]} Kc6 {[%emt 0:00:15]} 60. Kc2 {[%emt 0:00:05]} Kd5 {[%emt 0:00:40]} 61. Kd3 {[%emt 0:00:30]} Kc5 {[%emt 0:00:24]} 62. Kc3 {[%emt 0:00:12]} Kd5 {[%emt 0:01:17]} 63. Kb4 {[%emt 0:00:18]} Kc6 {[%emt 0:00:19]} 64. Ka5 {[%emt 0:00:11]} Kc5 {[%emt 0:00:30]} 65. a3 {[%emt 0:00:12]} Kc6 {[%emt 0:00:01]} 66. Ka6 {[%emt 0:00:35]} Kc5 {[%emt 0:00:06]} 67. Kb7 {[%emt 0:00:00]} Kd5 {[%emt 0:00:29]} 68. Kb6 {[%emt 0:00:00]} Ke4 {[%emt 0:00:45]} 69. Kxb5 {[%emt 0:00:23]} Kf3 {[%emt 0:00:30]} 70. a4 {[%emt 0:00:00]} Kxg3 {[%emt 0:00:00]} 71. a5 {[%emt 0:00:00]} Kxf4 {[%emt 0:00:32]} 72. a6 {[%emt 0:00:00]} Kg3 {[%emt 0:00:00]} 73. a7 {[%emt 0:00:00]} f4 {[%emt 0:00:16]} 74. a8=Q {[%emt 0:00:27]} f3 {[%emt 0:00:00]} 75. Qg8+ {[%emt 0:00:00]} Kh2 {[%emt 0:00:31]} 76. Qf7 {[%emt 0:00:20]} Kg2 {[%emt 0:00:30]} 77. Qxh5 {[%emt 0:00:00]} 1-0

[Event "Turkish Championship 2023"]
[Site "Kemer Antalya"]
[Date "2023.12.05"]
[Round "4"]
[White "Gunduz, Umut Erdem"]
[Black "Isik, Alparslan"]
[Result "1/2-1/2"]
[ECO "E21"]
[WhiteElo "2318"]
[BlackElo "2452"]
[Annotator "RC"]
[PlyCount "75"]
[EventDate "2023.12.01"]
[EventType "tourn"]
[EventCountry "TUR"]
[SourceTitle "playchess.com"]
[Source "ChessBase"]
[SourceQuality "1"]
[TimeControl "40/5400+30:1800+30"]

1. d4 {[%emt 0:01:00]} Nf6 {[%emt 0:05:00]} 2. Nf3 {[%emt 0:00:30]} e6 {[%emt 0:00:00]} 3. c4 {[%emt 0:00:00]} b6 {[%emt 0:00:00]} 4. Nc3 {[%emt 0:02:00]} Bb7 {[%emt 0:03:30]} 5. g3 {[%emt 0:04:30]} Bb4 {[%emt 0:01:30]} 6. Bg2 {[%emt 0:01:30]} Bxc3+ {[%emt 0:10:30]} 7. bxc3 {[%emt 0:00:30]} O-O {[%emt 0:00:30]} 8. Ba3 {[%emt 0:12:30]} d6 {[%emt 0:02:30]} 9. c5 {[%emt 0:00:00]} dxc5 {[%emt 0:02:30]} 10. dxc5 {[%emt 0:02:00]} Qxd1+ {[%emt 0:00:30]} 11. Rxd1 {[%emt 0:00:00]} Re8 {[%emt 0:03:30]} 12. O-O {[%emt 0:02:00]} Nbd7 {[%emt 0:00:30]} 13. Nd4 {[%emt 0:03:30]} Bxg2 {[%emt 0:02:30]} 14. Kxg2 {[%emt 0:00:00]} bxc5 {[%emt 0:09:30]} 15. Nb3 {[%emt 0:20:00]} c4 {[%emt 0:01:30]} 16. Na5 {[%emt 0:00:30]} Nb6 {[%emt 0:00:00]} 17. Kf3 {[%emt 0:03:30]} Nfd5 {[%emt 0:05:00]} 18. Bb4 {[%emt 0:07:30]} Na4 {[%emt 0:17:30]} 19. Nxc4 {[%emt 0:02:30]} c5 {[%emt 0:05:30]} 20. Ba5 {[%emt 0:00:30]} Naxc3 {[%emt 0:00:30]} 21. Bxc3 {[%emt 0:01:30]} Nxc3 {[%emt 0:00:00]} 22. Rd7 {[%emt 0:00:00]} Red8 {[%emt 0:10:55]} 23. Rc7 {[%emt 0:00:00]} Rdc8 {[%emt 0:04:30]} 24. Rb7 {[%emt 0:04:30]} Rcb8 {[%emt 0:00:39]} 25. Rc7 {[%emt 0:00:30]} Nxa2 {[%emt 0:02:30]} 26. Ra1 {[%emt 0:00:30]} Nc3 {[%emt 0:00:13]} 27. Raxa7 {[%emt 0:02:30]} Rxa7 {[%emt 0:00:46]} 28. Rxa7 {[%emt 0:00:00]} Nb5 {[%emt 0:00:04]} 29. Rd7 {[%emt 0:02:00]} Nd4+ {[%emt 0:03:36]} 30. Ke3 {[%emt 0:00:30]} h5 {[%emt 0:01:02]} 31. Rc7 {[%emt 0:01:30]} Rb3+ {[%emt 0:01:12]} 32. Kd2 {[%emt 0:00:30]} Rb1 {[%emt 0:01:07]} 33. Nd6 {[%emt 0:03:30]} Rb2+ {[%emt 0:03:54]} 34. Kd3 {[%emt 0:00:30]} Nxe2 {[%emt 0:01:26]} 35. Nxf7 {[%emt 0:00:30]} Nd4 {[%emt 0:00:37]} 36. Ng5 {[%emt 0:01:30]} Rxf2 {[%emt 0:00:30]} 37. Rxc5 {[%emt 0:00:30]} Nb3 {[%emt 0:00:30]} 38. Rc8+ {[%emt 0:02:30]} 1/2-1/2

[Event "Turkish Championship 2023"]
[Site "Kemer Antalya"]
[Date "2023.12.05"]
[Round "4"]
[White "Tirpan, Ceren"]
[Black "Metin, Enis"]
[Result "1-0"]
[ECO "B27"]
[WhiteElo "1940"]
[BlackElo "2031"]
[Annotator "NA RC"]
[PlyCount "111"]
[EventDate "2023.12.01"]
[EventType "tourn"]
[EventCountry "TUR"]
[SourceTitle "playchess.com"]
[Source "ChessBase"]
[SourceQuality "1"]
[TimeControl "40/5400+30:1800+30"]

1. e4 {[%emt 0:01:00]} c5 {[%emt 0:01:00]} 2. Nc3 {[%emt 0:00:30]} g6 {[%emt 0:00:30]} 3. d4 {[%emt 0:00:00]} cxd4 {[%emt 0:00:00]} 4. Qxd4 {[%emt 0:00:00]} Nf6 {[%emt 0:00:00]} 5. Nf3 {[%emt 0:00:00]} Nc6 {[%emt 0:00:00]} 6. Qa4 {[%emt 0:00:00]} d6 {[%emt 0:01:00]} 7. e5 {[%emt 0:00:30]} dxe5 {[%emt 0:00:30]} 8. Nxe5 {[%emt 0:00:30]} Bd7 {[%emt 0:00:30]} 9. Nxd7 {[%emt 0:00:30]} Qxd7 {[%emt 0:00:30]} 10. Be3 {[%emt 0:03:30]} Qg4 {[%emt 0:00:30]} 11. Qb3 {[%emt 0:15:30]} Qb4 {[%emt 0:11:30]} 12. Bb5 {[%emt 0:01:30]} Qxb3 {[%emt 0:00:30]} 13. axb3 {[%emt 0:00:30]} a6 {[%emt 0:00:30]} 14. Bxc6+ {[%emt 0:04:30]} bxc6 {[%emt 0:00:00]} 15. Ra5 {[%emt 0:05:30]} Bg7 {[%emt 0:05:00]} 16. Ke2 {[%emt 0:03:30]} O-O {[%emt 0:08:30]} 17. Rha1 {[%emt 0:04:30]} Nd5 {[%emt 0:00:30]} 18. Nxd5 {[%emt 0:13:30]} cxd5 {[%emt 0:00:30]} 19. Rxd5 {[%emt 0:00:00]} Bxb2 {[%emt 0:00:30]} 20. Ra2 {[%emt 0:00:00]} Bc3 {[%emt 0:08:30]} 21. Kd3 {[%emt 0:09:30]} Bb4 {[%emt 0:17:30]} 22. c3 {[%emt 0:00:30]} e6 {[%emt 0:02:30]} 23. Rd7 {[%emt 0:02:30]} Rfd8 {[%emt 0:00:30]} 24. Rxd8+ {[%emt 0:00:30]} Rxd8+ {[%emt 0:00:30]} 25. Kc4 {[%emt 0:00:00]} Bd6 {[%emt 0:01:30]} 26. Rxa6 {[%emt 0:01:00]} Bxh2 {[%emt 0:00:00]} 27. g3 {[%emt 0:02:30]} e5 {[%emt 0:00:00]} 28. Ra1 {[%emt 0:10:30]} f5 {[%emt 0:00:30]} 29. Rh1 {[%emt 0:00:30]} f4 {[%emt 0:00:30]} 30. Rxh2 {[%emt 0:00:30]} fxe3 {[%emt 0:00:00]} 31. fxe3 {[%emt 0:00:00]} h5 {[%emt 0:01:00]} 32. g4 {[%emt 0:02:00]} hxg4 {[%emt 0:01:30]} 33. Rg2 {[%emt 0:00:00]} Rc8+ {[%emt 0:00:30]} 34. Kd3 {[%emt 0:00:00]} Rd8+ {[%emt 0:01:30]} 35. Ke4 {[%emt 0:09:35]} Rc8 {[%emt 0:02:30]} 36. c4 {[%emt 0:00:30]} Kf7 {[%emt 0:00:00]} 37. Kxe5 {[%emt 0:01:12]} Rb8 {[%emt 0:00:00]} 38. Rxg4 {[%emt 0:00:18]} Rxb3 {[%emt 0:00:30]} 39. e4 {[%emt 0:00:00]} Rc3 {[%emt 0:00:30]} 40. Kd5 {[%emt 0:00:00]} Rd3+ {[%emt 0:00:00]} 41. Kc6 {[%emt 0:00:55]} Ke7 {[%emt 0:04:00]} 42. Rxg6 {[%emt 0:04:30]} Rd4 {[%emt 0:00:30]} 43. c5 {[%emt 0:00:00]} Rxe4 {[%emt 0:00:00]} 44. Kc7 {[%emt 0:00:00]} Rb4 {[%emt 0:02:00]} 45. c6 {[%emt 0:00:30]} Kf7 {[%emt 0:00:30]} 46. Rg1 {[%emt 0:00:30]} Ke6 {[%emt 0:00:30]} 47. Re1+ {[%emt 0:01:30]} Kd5 {[%emt 0:00:30]} 48. Rd1+ {[%emt 0:00:00]} Ke6 {[%emt 0:00:00]} 49. Kc8 {[%emt 0:00:00]} Ke7 {[%emt 0:00:00]} 50. c7 {[%emt 0:00:30]} Ke8 {[%emt 0:00:00]} 51. Re1+ {[%emt 0:01:30]} Kf7 {[%emt 0:00:00]} 52. Kd7 {[%emt 0:00:30]} Rd4+ {[%emt 0:00:00]} 53. Kc6 {[%emt 0:00:00]} Rc4+ {[%emt 0:00:00]} 54. Kd6 {[%emt 0:00:00]} Kf8 {[%emt 0:00:30]} 55. Ra1 {[%emt 0:00:30]} Kf7 {[%emt 0:00:00]} 56. Ra8 {[%emt 0:00:00]} 1-0